{"text_format":"1","workbook":"xlsx","n_sheets":4,"sheets":["history","Sheet2","Sheet1","Sheet3"],"not_rendered":{"charts":0,"images":1,"macros":1,"external_links":0,"defined_names":2,"comments":0,"pivot_tables":0},"unopened":[],"bounds":{"document_bytes":16777216,"sheet_cells":100000,"rows_first":2000,"rows_last":500,"rows_between":2000,"halvings":0,"cell_chars":16384,"cell_head_chars":4096},"cells_cut":0,"cells_raw":0,"read":"whole","date_system":"1900"}

{"sheet":"history","index":0,"n_rows":251,"n_cols":33,"rows_kept":251,"cut":false,"hidden":false,"merged":[[1,9,1,11],[1,6,1,8],[1,12,1,13]]}
[null,"WHS TIMELINE as told in \"JANUS\" - ALL YEARS"]
[null,null,null,null,null,null,"WHEN/FROM",null,null,"TO",null,null,"AT WHS"]
[null,"AREA","EVENT","ACHIEV\nEMENT","LINK","IN\nJANUS","DAY","MON","YR","DAY","MON","YR","FROM","TO","ACYR","HOW\nLONG","TITLE","FIRSTNAME","LASTNAME","RE\nHOUSE","KNOWN\nAS","STATUS","WHAT","POSITION","REPLACED","REPLACED BY","SUBJECT(S)","INTERESTS","ACTIVITIES","BEFORE WHS","AFTER WHS","COMMENTS","IMAGE"]
[1,"M&D","Bach's \"Christmas Oratorio\" was performed",null,"GO","1967",16,12,1967,null,null,null,null,null,6768]
[2,"M&D","\"SWANSONG\": a recital by the 3rd YR Vth",null,"GO",1967,9,12,1967,null,null,null,null,null,6768]
[3,"M&D","\"The Strong Are Lonely\" performed on 9/10/11 December.",null,"GO",1966,9,12,1966,null,null,null,null,null,6667]
[4,"staffing","Mr McNichol arrived to teach Biology for 1 term.",null,"GO",1966,null,9,1966,null,null,null,null,null,6667,null,"Mr","UNKNOWN","McNichol",null,null,"T","started","teacher",null,null,"Biology",null,null,"University of Adelaide"]
[5,"staffing","Mr Chilton left after replacing Commander Wiseman for 6 months - Mrs Mayes replaced him as Tuckshop Manageress",null,"GO",1966,null,8,1966,null,null,null,null,null,6566,null,"Mr","J. L.","Chilton",null,null,"DS","left WHS","Bursar",null,"Mrs Mayes",null,null,null,null,"Bursar at Sentral Elec. Board at Horsley Towers in Surrey"]
[6,"wedding","Angela Bailey married Ian Beardwell in Woolverstone",null,"GO","1967",22,7,1967,null,null,null,null,null,6667]
[7,"M&D","\"It Should Happen To A Dog\" and \"Dwarfs\" (sic) - part of \"The Woolverstone Festival\"",null,"GO","1967",null,7,1967,null,null,null,null,null,6768]
[8,"M&D","school play: \"The Strong are Lonely\"",null,"GO","1967",null,7,1967,null,null,null,null,null,6768]
[9,"M&D","\"See How They Run\" - a staff drama was performed",null,"GO",1967,null,7,1967,null,null,null,null,null,6768]
[10,"M&D","Halls House play \"Noah\" was performed",null,"GO",1967,null,7,1967,null,null,null,null,null,6768]
[11,"M&D","\"The Government Inspector\" was performed.",null,"GO",1966,null,7,1966,null,null,null,null,null,6566]
[12,"M&D","\"I Killed The Count\" was performed by 3rd & 4th forms.",null,"GO",1966,null,7,1966,null,null,null,null,null,6566]
[13,"death","Commander Wiseman died",null,"GO",1966,4,6,1966,null,null,null,null,null,6566,null,"Commander","John","Wiseman",null,null,"DS","died","Bursar",null,null,null,null,null,"came with LNS in 1947 when it transferred from Maiden head"]
[14,"travel","Easter school trip to France (Poole & Ramsay)",null,"GO",1966,null,4,1966,null,null,null,null,null,6566]
[15,"travel","Expedition to Spain",null,"GO","1967",22,3,1967,null,null,null,null,null,6667]
[16,"M&D","\"Let's make an Opera\" was performed",null,"GO",1967,17,3,1967,null,null,null,null,null,6667]
[17,"staffing","Michael Watts left after being Dep. Head. since 1973.",null,"GO",1968,null,3,1968,null,null,null,null,null,6768,null,"Mr","Michael","Watts",null,null,"T","left WHS","Deputy-Head","Mr Hudson",null,null,null,null,null,"Grammar Sch. At Yarm, West Riding"]
[18,"premises","Lots of improvements to the library.",null,"GO",1966,null,null,1966,null,null,null,null,null,6566]
[19,"sport","The 1st XV played The Old Woolverstonians. Losing 9-12",null,null,"1967",16,12,1967,null,null,null,null,null,6768]
[20,"M&D","school play",null,null,1968,13,12,1968]
[21,"staffing","Mr A. Allchin left WHS as teacher of Geog. & Maths",null,null,"1967",null,12,1966,null,null,null,null,null,6667,"6 years","Mr","A.","Allchin",null,"Chinny","T","left WHS","teacher",null,null,"Geog / Maths",null,"- very active in outdoor activities, esp. sailing\n- i/c  Sea Cadets before disbandment\n- helped with DofE",null,"becomes Warden at Tynemouth Field Centre at High Borras near Lake Windermere"]
[22,"staffing","Mr H. C. A. Thomas left as Housemaster of Corners",null,null,"1967",null,12,1966,null,null,null,null,null,6667,"8 years","Mr","H.C.A.","Thomas","Corners","Tooms","T","left WHS","Housemaster",null,null,"Chemistry",null,null,null,"moved into house near end Mannings Lane"]
[23,"staffing","Mr N. McNichol left WHS as Teacher of Biology",null,null,"1967",null,12,1966,null,null,null,null,null,6667,null,"Mr","N.","McNichol","Berners",null,"T","left WHS","Teacher",null,"C. J. Hawes","Biology",null,"helped in Berners",null,"went to boarding school in Switzerland"]
[24,"staffing","Peter Bond left after 2 years teaching English",null,null,1968,null,12,1967,null,null,null,null,null,6768,null,"Mr","Peter","Bond",null,null,"T","left WHS","English Teacher",null,null,null,null,"badminton & school drama",null,"Carisbrooke G.S. I.O.W."]
[25,"staffing","Peter Bond left Johnstons as Asst. Housemaster",null,null,1968,null,12,1967,null,null,null,null,null,6768,null,"Mr","Peter","Bond","Johnstons",null,"T","left WHS","Asst. Housemaster "]
[26,"premises","new teaching block almost complete - between metalwork rooms and Sports Store",null,null,1967,null,12,1967,null,null,null,null,null,6768]
[27,"staffing","Sister K. Hamon left WHS after 9 years service",null,null,1966,null,12,1965,null,null,null,null,null,6566,null,"Sister","K.","Hamon",null,null,"DS","retired","Sister in SB",null,null,null,null,null,null,"moved to Jersey"]
[28,"staffing","Mr P. Rees left",null,null,1966,null,12,1965,null,null,null,null,null,6566,null,"Mr","P.","Rees",null,null,"T","left WHS","teacher",null,null,"English"]
[29,"staffing","Mr Claude Giletti started WHS as French  Assistant",null,null,"1967",null,10,1967,null,null,null,null,null,6768,"1 year","Mr","Claude","Giletti",null,null,"T","started WHS","Language Assistant",null,null,"French",null,null,"Uni Lyon/ Psychology"]
[30,"staffing","Miss Frances Smith started as tuckshop Manageress",null,null,"1967",null,10,1967,null,null,null,null,null,6768,null,"Miss","Frances","Smith",null,null,"DS","started","tuckshop Manageress","Mr Mann"]
[31,"staffing","Mr UNKNOWN Mann started as Chief Asst. To Mr Cockayne",null,null,"1967",null,10,1967,null,null,null,null,null,6768,null,"Mr","UNKNOWN","Mann",null,null,"DS","started","Chief Asst. To Mr Cockayne"]
[32,"staffing","Mr E.E. Gower started as Corners Gardener",null,null,"1967",null,10,1967,null,null,null,null,null,6768,null,"Mr","E.E.","Gower","Corners",null,"DS","started","Corners Gardener"]
[33,"honour","Paul Finch named Head Boy",1,null,"1967",null,9,1967,null,null,null,null,null,6768,"1 year","Mr","Paul","Finch",null,null,"P","appointed","Head Boy","Peter Lover",null,null,null,null,null,null,"also Head of Hansons House"]
[34,"staffing","Mr Francis Gruie started WHS as French Assistant",null,null,"1967",null,9,1966,null,null,null,null,null,6667,"1 year","Mr","Francis","Gruie",null,null,"T","started WHS","Language Assistant",null,null,"French"]
[35,"staffing","Mr Herman Linder started WHS as German  Assistant",null,null,"1967",null,9,1966,null,null,null,null,null,6667,"1 year","Mr","Herman","Linder",null,null,"T","started WHS","Language Assistant",null,null,"German",null,null,"Uni Munich/English & Latin"]
[36,"staffing","Gunter Feneis arrived as German Assistant.",null,null,1968,null,9,1968,null,null,null,null,null,6869,null,"Mr","Gunter","Watts",null,null,"T","arrived","German Asst."]
[37,"staffing","Gerard Labarre arrived as French Assistant.",null,null,1968,null,9,1968,null,null,null,null,null,6869,null,"Mr","Gerard","Watts",null,null,"T","arrived","French Asst."]
[38,"honour","Henry Gibbons appointed Head Boy",1,null,1968,null,9,1968,null,null,null,null,null,6869,null,"Mr","Henry","Gibons",null,null,"B","appointed","Head Boy"]
[39,"staffing","Malcolm Pool was Deputy-Head for one term.",null,null,1968,null,9,1968,null,null,null,null,null,6869,null,"Mr","Malcolm A. R.","Poole",null,null,"T","started","Temp. Deputy-Head","Michael Watts","Peter Hudson"]
[40,"staffing","The new Bursar arrived: Norman Cockayne.",null,null,1966,null,9,1966,null,null,null,null,null,6566,null,"Mr","Norman","Cockayne",null,null,"DS","arrived","Bursar","Commander Wiseman",null,null,null,null,"Admin Officer with ILEA in Countxy Hall - previously with LCC Ed. Service since 1936"]
[41,"honour","Peter Lover appointed Head Boy.",1,null,1966,null,9,1966,null,null,null,null,null,6566,null,"Mr","Peter","Lover",null,null,"B","appointed","Head Boy","V. Lockett"]
[42,"staffing","Sister M. D. Godwin appointed i/s Sick Bay.",null,null,1966,null,9,1966,null,null,null,null,null,6566,null,"Miss","S. D.","Godwin",null,null,"DS","started","i/c Sick Bay"]
[43,"staffing","Sister M. D. Godwin arrived as nurse.",null,null,1966,null,9,1965,null,null,null,null,null,6566,null,"Miss","S. D.","Godwin",null,null,"DS","started","nurse"]
[44,"wedding","Glenys Talbot married Glyn Pettit in Shropshire",null,null,1967,29,7,1967,null,null,null,null,null,6667]
[45,"official","Speech Day - M. Lockett gave vote of thanks",null,null,1966,16,7,1966,null,null,null,null,null,6566]
[46,"official","Speech Day - Mrs Chaplin presided - Paul Lover made a speech",null,null,"1967",15,7,1967,null,null,null,null,null,6667]
[47,"staffing","Mrs UNKNOWN Wells started as Assistant Bursar to Miss Shaw",null,null,"1967",null,7,1967,null,null,null,null,null,6768,null,"Mrs","UNKNOWN","Wells",null,null,"DS","started","Assistant Bursar to Miss Shaw","Glenys Talbot"]
[48,"staffing","Mr Francis Gruie left WHS as French Language Assistant",null,null,"1967",null,7,1967,null,null,null,null,null,6566,"1 year","Mr","Francis","Gruie",null,null,"T","left WHS","Language Assistant",null,"Claude Giletti","French"]
[49,"staffing","Ms Glenys Talbot left as Asst. Dom. Bursar",null,null,"1967",null,7,1967,null,null,null,null,null,6667,"1 year","Ms","Glenys","Talbot",null,null,"DS","left WHS","Asst. Dom. Bursar",null,null,null,null,null,null,null,"got married July 29th 1967 to Mr Glyn Pettit"]
[50,"staffing","Mr Herman Linder left WHS as German Assistant",null,null,"1967",null,7,1967,null,null,null,null,null,6667,"1 year","Mr","Herman","Linder",null,null,"T","left WHS","Language Assistant"]
[51,"M&D","school play: \"Chips With Everything\"",null,null,"1967",null,7,1967,null,null,null,null,null,6768]
[52,"staffing","Mr Anton Presisegger left WHS as German Assistant",null,null,"1967",null,7,1966,null,null,null,null,null,6667,"1 year","Mr","Anton","Presisegger",null,null,"T","left WHS","Language Assistant",null,"Hermann Linder","German",null,null,null,"returned to Vienna"]
[53,"staffing","Hermann Linder left as German Assistant.",null,null,1968,null,7,1967,null,null,null,null,null,6768,null,"Mr","Herman","Linder",null,null,"T","left WHS","German Asst."]
[54,"staffing","Claude Giletti left as French Assistant.",null,null,1968,null,7,1968,null,null,null,null,null,6768,null,"Mr","Claude","Giletti",null,null,"T","left WHS","French Asst."]
[55,"academic","Richard D. Davies awarded Open Exhibition to St Johns College, Cambridge",1,null,1968,null,7,68,null,null,null,null,null,6768,null,"Mr","Richard","Davies",null,null,"B"," Open Ex."]
[56,"wedding","Joan Meeds married Peter Bond in Ipswich",null,null,1967,null,7,1967,null,null,null,null,null,6667]
[57,"staffing","Hans Buchanan, the German Assistant, left.",null,null,1966,null,7,1966,null,null,null,null,null,6566,null,"Mr","Hans","Buchmann",null,null,"T","left WHS","Language Assistant",null,null,"German",null,null,null,"returned to Switzerland"]
[58,"academic","Peter McNair won Open Exhibition in History to Selwyn College, Cambridge.",1,null,1966,null,7,1966,null,null,null,null,null,6566,null,"Mr","Peter","McNair",null,null,"B","Open Ex."]
[59,"academic","Geraint L. Howell won Open Exhibition in History to Jesus College, Oxford.",1,null,1966,null,7,1966,null,null,null,null,null,6566,null,"Mr","Geraint L.","Howell",null,null,"B"," Open Ex."]
[60,"premises","\"The Holly\" acquired by school - Bursar lives on ground floor - top floor to be converted into 2 flats.",null,null,1966,null,7,1966,null,null,null,null,null,6667]
[61,"sport","M. Lockett won the Senior X-Country by 49s in 24m17s.",1,null,1966,null,7,1966,null,null,null,null,null,6566,null,null,null,null,null,null,"B"]
[62,"birth","Mr Mrs Turner had son Robert",null,null,1968,13,6,1968]
[63,"birth","Mr Mrs Hutchinson had son Richard Alexander Jonathan",null,null,1968,3,5,1968]
[64,"staffing","Miss J. Meeds came as Asst. Sister in SB.",null,null,1966,null,5,1966,null,null,null,null,null,6667,null,"Miss","J.","Meeds",null,null,"DS","started","Sister",null,null,null,null,null,"Avery Hill Tchr. Training Coll."]
[65,"staffing","C. Westlake spent 1 term teaching History",null,null,1968,null,4,1968,null,null,null,null,null,6768,"1 term","Mr","C.","Westlake",null,null,"T","left WHS","Teacher",null,null,"History",null,null,"P.G.C.E. At Cambridge","Queen Mary's G.S. Walsall, Brian Middlebrook's old school"]
[66,"birth","Mr Mrs Watts had son Joseph",null,null,1968,null,4,1968]
[67,"staffing","Mr J. McKenzie left after teaching Art for 2 years and serving as Orwell Asst. Housemaster",null,null,1966,null,4,1966,null,null,null,null,null,6566,null,"Mr","J.","McKenzie",null,null,"T","left WHS","teacher",null,null,"Art",null,"worked in Printing Society and on stage sets",null,"a school in New Zealand"]
[68,"staffing","Hans Buchanan, the German Assistant, left.",null,null,1966,null,4,1966,null,null,null,null,null,6566,null,"Mr","UNKNOWN","Scott",null,null,"T","left WHS","Asst. Domestic Bursar"]
[69,"staffing","Miss G. Talbot arrived as Asst, Bursar.",null,null,1966,null,4,1966,null,null,null,null,null,6566,null,"Miss","G.","Talbot",null,null,"DS","started","Asst. Bursar"]
[70,"staffing","Mike Coulter arrived to take over Art Department.",null,null,1966,null,4,1966,null,null,null,null,null,6667,null,"Mr","Mike J.","Coulter",null,null,"T","started","Head of Dept.","Ernie Green",null,"Art",null,null,"Rising Brook School in Stafford"]
[71,"staffing","Mike Coulter appointed Asst Housemaster of Halls.",null,null,1966,null,4,1966,null,null,null,null,null,6667,null,"Mr","Mike J.","Coulter","Halls",null,"T","started","Asst. Housemaster Halls"]
[72,"staffing","Mr S. S. Tong came as Student Teacher for Easter term.",null,null,1966,null,4,1966,null,null,null,null,null,6566,null,"Mr","S. S. ","Tong",null,null,"ST","started","student tchr.",null,null,"English"]
[73,"staffing","Mr C. Jones came as Student Teacher for Easter term.",null,null,1966,null,4,1966,null,null,null,null,null,6566,null,"Mr","C. ","Jones",null,null,"ST","started","student tchr.",null,null,"Maths",null,null,null,"teaching in Oundle"]
[74,"staffing","Mr R. Elms came as Student Teacher for Easter term.",null,null,1966,null,4,1966,null,null,null,null,null,6566,null,"Mr","R.","Elms",null,null,"ST","started","student tchr.","Mr Cox",null,"Physics",null,null,null,"V.S.O. In Nigeria"]
[75,"Old Boys","Old Boys' Association Annual General Meeting",null,null,"1967",22,3,1967,null,null,null,null,null,6667]
[76,"event","Virus \"B\" filled Sick Bay and caused cancellation of the Stowe Exchange.",null,null,1966,null,2,1966,null,null,null,null,null,6566]
[77,"birth","Mr Mrs Mann had daughter Nicola Jane",null,null,1968,30,1,1968]
[78,"staffing","Mr R.W. Barker started WHS as Housemaster",null,null,"1967",null,1,1967,null,null,null,null,null,6768,null,"Mr","R.W.","Barker","Corners",null,"T","started WHS","Housemaster","H.C.A. Thomas",null,"Maths"]
[79,"staffing","Mr Colin J. Hawes started WHS as Teacher of Biology",null,null,"1967",null,1,1967,null,null,null,null,null,6667,null,"Mr","Colin J.","Hawes",null,null,"T","started WHS","Teacher","N. McNichol",null,"Biology",null,null,"Northgate G.S./BSc. London Univ.\r\nYear at Exeter Univ. Researching Plant Pathology"]
[80,"staffing","Mr Colin J. Hawes started as Asst. Housemaster of Berners",null,null,"1967",null,1,1967,null,null,null,null,null,6667,null,"Mr","Colin J.","Hawes","Berners",null,"T","started","Asst. Housemaster",null,null,"Biology",null,null,"Northgate G.S./BSc. London Univ.\r\nYear at Exeter Univ. Researching Plant Pathology"]
[81,"staffing","Mr R.P.D. Hutchinson started WHS as Teacher",null,null,"1967",null,1,1967,null,null,null,null,null,6667,null,"Mr","R.P.D.","Hutchinson",null,null,"T","started WHS","Teacher","Mr Allchin",null,"Geography",null,null,"Newcastle Uni/Crosse & Blackwell/2.5 yrs teaching in rural Tanzania"]
[82,"staffing","Mr R.W Barker replaced Mr Thomas as Housemaster of Corners",null,null,"1967",null,1,1967,null,null,null,null,null,6667,null,"Mr","R.W","Barker","Corners",null,"T","started","Housemaster","H.C.A. Thomas"]
[83,"staffing","Mr UNKNOWN Jones started as student teacher of Mod Langs",null,null,"1967",null,1,1967,null,null,null,null,null,6667,"1 term","Mr","UNKNOWN","Jones",null,null,"T","started","Student Teacher",null,null,"French & German",null,null,"from Oxford","teaching in France"]
[84,"staffing","Student Mr UNKNOWN Strickland started as Maths Teacher",null,null,"1967",null,1,1967,null,null,null,null,null,6667,"1 term","Mr","UNKNOWN","Strickland",null,null,"T","started","Student Teacher",null,null,"Maths",null,null,"from Cambridge","Wycliffe College Worcs"]
[85,"staffing","Mike J. Coulter replaced Brian Middlebrook as Housemaster of Halls",null,null,"1967",null,1,1967,null,null,null,null,null,6768,"1 year","Mr","Mike J.","Coulter","Halls",null,"T","started","Housemaster","Brian Middlebrook"]
[86,"staffing","Peter Hudson arrived as Deputy-Head",null,null,1968,null,1,1969,null,null,null,null,null,6869,null,"Mr","Peter","Hudson",null,null,"T","arrived","Deputy-Head","Malcolm Poole",null,null,null,null,"Denstone College"]
[87,"staffing","Rev. T Johnstone arrived as \"Asst. English Master\" for 1 term",null,null,1968,null,1,1968,null,null,null,null,null,6768,"1 term","Mr","T. ","Johnstone",null,null,"T","arrived","Teacher",null,null,"English",null,null,null,null,"from Buenos Aires - polyglot & expert on Baron Munchhausen"]
[88,"staffing","Peter Bond arrived to teach English.",null,null,1966,null,1,1966,null,null,null,null,null,6566,null,"Mr","Peter D.","Bond",null,null,"T","started","teacher",null,null,"English",null,null,"Cambridge, Army & 5 yrs teaching in Malaya & then at Sidcup G.S."]
[89,"staffing","Mr Brian Middlebrook on sabbatical doing Educational Psychology at Cambridge",null,null,"1967",null,null,1967,null,null,null,null,null,6768,"1 year","Mr","Brian","Middlebrook","Halls","Stringy","T","on leave",null,null,"Mike Coulter","Latin",null,null,null,null,"course on Educational Psychology at Cambridge"]
[90,"honour","Paul Finch awarded  Open Scholarship in History  to Selwyn College Cambridge",1,null,1968,null,null,null,null,null,null,null,null,null,null,null,"Paul","Finch",null,null,null,"Open Scholarship"]
[91,"honour","G. Egan won Travelling Scholarship to France",1,null,1968]
[92,"honour","R.R. Austin awarded R.A.F. Flying Scholarship",1,null,1968]
[93,"sport","Nusrat Nazeer scored 100 n.n. V King's Macclesfield & took 7 wickets for 18 runs v Norwich School",null,null,1967,null,null,1967,null,null,null,null,null,6667]
[94,"M&D","150 boys now learn and play at least one musical instrument",null,null,1967,null,null,1967,null,null,null,null,null,6768]
[95,"premises","alterations to \"The Holly\" completed - occupied by Miss K-Shaw & Miss Smith",null,null,1967,null,null,1967,null,null,null,null,null,6768]
[96,"sport","The 1st XV beat Colchester  22-8 and lost NO matches against schools; only drawing 3-3 with Wymondham",1,null,1967,null,null,1967,null,null,null,null,null,6667]
[97,"premises","The swimming-pool now has a cover!",null,null,1967,null,null,1967,null,null,null,null,null,6667]
[98,"event","The WHS-STOWE Exchange took place",null,null,1967,null,null,1967,null,null,null,null,null,6667]
[99,"event","The parents Ass. Replaced one of the Enterprise boats and paid for the paving round the swimming-pool",null,null,1966,null,null,1966,null,null,null,null,null,6566]
[100,"sport","Phil Davies represented Suffolk in All-England Athletics Champ. for 3rd time.",1,null,1966,null,null,1966,null,null,null,null,null,6566,null,null,"Philip","Davies","Berners","Ugg","B","All-England"]
[101,"staffing","Mr Farthing left as Corners Gardener after a series of illnesses.",null,null,1966,null,null,1966,null,null,null,null,null,6566,null,null,null,null,null,null,"DS",null,"Gardener",null,"Mr Gower"]
[102,"honour","Peter Lover won the Rowland Memorial Prize.",1,null,1966,null,null,1966,null,null,null,null,null,6566,null,"Mr","Peter","Lover",null,null,"B","won prize","Head Boy"]
[103,"honour","David Pearn qualified for V.S.O. In Zambia.",1,null,1966,null,null,1966,null,null,null,null,null,6566,null,null,"David","Pearn","Halls",null,"B"]
[104,"staffing","Peter Sadler got married.",null,null,1966,null,null,1966,null,null,null,null,null,6566,null,null,"Peter","Sadler","Berners",null,"T"]
[105,"sport","Loch Trimminglam and Goodman awarded athletics colours, very unusual for IVth formers.",1,null,1966,null,null,1966,null,null,null,null,null,6566,null,null,null,null,null,null,"B"]
[106,"event","Leslie Woolford visited WHS to give a talk on history of WHS.",null,null,1966,null,null,1966,null,null,null,null,null,6566,null,null,"Leslie","Woolford",null,null,"FT"]
[107,"sport","Only ONE MATCH was lost to a school by the top SIX RUGBY TEAMS.",1,null,1966,null,null,1966,null,null,null,null,null,6566]
[108,"sport","Phil Davies won the 100 yards in 10.4 seconds.",1,null,1966,null,null,1966,null,null,null,null,null,6566,null,null,null,null,null,null,"B"]
[109,"M&D","\"The St John Passion\" was performed.",null,null,1966,null,null,1966,null,null,null,null,null,6566]
[110,"premises","the new science block was completed",null,null,1968,null,9,1968,null,null,null,null,null,6869]
[111,"premises","the Art Room was extended",null,null,1968,null,9,1968,null,null,null,null,null,6869]
[112,"premises","Old Staffroom given up for Library extension - staff now using two rooms in former Deputy-Head's house",null,null,1968,null,9,1968,null,null,null,null,null,6869]
[113,"official","Speech Day",null,null,1968,13,7,1968,null,null,null,null,null,6768]
[114,"official","Mrs A Forbes-Cockell became new Chairman of Governors",null,null,1968,null,null,null,null,null,null,null,null,6869,null,null,null,null,null,null,null,"appointed"]
[115,"birth","Mr Mrs Clayton had son Roderick Edward",null,null,1968,18,9,1968,null,null,null,null,null,6869]
[116,"birth","Mr Mrs Sadler had daughter Tanja",null,null,1968,7,10,1968,null,null,null,null,null,6869]
[117,"sport","John Martin represented Suffolk in the All-England Meeting",1,null,1968,null,7,1968,null,null,null,null,null,6768,null,null,"John","Martin"]
[118,"sport","Orwell won the inter-house athletics competition for 5th successive year.",1,null,1968,null,7,1968,null,null,null,null,null,6768,null,null,null,null,null,null,null,"left WHS"]
[119,"boys","Music legend Richard Davis left this year",1,null,1968,null,7,1968,null,null,null,null,null,6768,null,null,"Richard"," Davis","Orwell",null,null,"left WHS"]
[120,"M&D","\"Crime and Punishment\" was performed",null,"GO",1968,null,7,1968,null,null,null,null,null,6768,null,null,null,null,null,null,null,null,null,null,null,null,null,null,null,null,"assumed July - no date found"]
[121,"M&D","\"Journey's End\" was performed",null,"GO",1968,null,7,1968,null,null,null,null,null,6768]
[122,"travel","School trip to Austria led by Mr Waters and Mr Coulter",null,null,1968,null,7,1968,null,null,null,null,null,6768]
[123,"honour","Barry Clark awarded Distinction in Teaching Practice at College of St. Mark & St. John",1,null,1968,null,null,1968,null,null,null,null,null,6768]
[124,"honour","Mark Wing-Davey named Head of Orwell House",1,null,1966,null,null,1966,null,null,null,null,null,6667,null,null,"Mark","Wing-Davey","Orwell",null,"HH","appointed","Head of House"]
[125,"honour","Anthony Pye named Head of Berners House",1,null,1966,null,null,1966,null,null,null,null,null,6667,null,null,"Anthony","Pye","Berners",null,"HH","appointed","Head of House"]
[126,"honour","Peter Lover named Head of Halls House",1,null,1966,null,null,1966,null,null,null,null,null,6667,null,null,"Peter","Lover","Halls",null,"HH","appointed","Head of House"]
[127,"honour","Ian McEwan named  Head of Johnstons House",1,null,1966,null,null,1966,null,null,null,null,null,6667,null,null,"Ian","McEwan","Johnstons",null,"HH","appointed","Head of House"]
[128,"honour","Dennis Lingard names Head of Hansons House",1,null,1966,null,null,1966,null,null,null,null,null,6667,null,null,"Dennis","Lingard","Hansons",null,"HH","appointed","Head of House"]
[129,"honour","David G. Neale named Head of Corners House",1,null,1966,null,null,1966,null,null,null,null,null,6667,null,null,"David G.","Neale","Corners",null,"HH","appointed","Head of House"]
[130,"honour","Peter Daish appointed Captain of Cricket",1,null,1966,null,null,1966,null,null,null,null,null,6667,null,null,"Peter","Daish",null,null,"CC","appointed","Cricket Captain"]
[131,"honour","Peter Jones appointed Captain of Rugby",1,null,1967,null,null,1966,null,null,null,null,null,6667,null,null,"Peter","Jones",null,null,"CR",null,"Cricket Rugby"]
[132,"M&D","Peter Lover produced Vith form's \"Waiting for Godot\"",1,"GO",1966,null,7,1966,null,null,null,null,null,6566,null,"Mr","Peter","Lover",null,null,"B"]
[133,"sport","The staff beat the boys in the football match 1-0.",null,"GO",1966,null,7,1966,null,null,null,null,null,6566]
[134,"M&D","\"Breaking Point\" produced by Upper Vith",null,"GO",1966,null,7,1966,null,null,null,null,null,6566]
[135,"travel","Austria & Germany (Thornbery, Davies & Wild)",null,"GO",1966,null,8,1966,null,null,null,null,null,6566]
[136,"honour","Michael J. Radford named Head of Berners",1,null,"1967",null,9,1967,null,null,null,null,null,6768,null,null,"Michael","Radford","Berners",null,"B","appointed","Head of House"]
[137,"honour","Franklin C. Grigor named Head of Corners",1,null,"1967",null,9,1967,null,null,null,null,null,6768,null,null,"Franklin","Grigor","Corners",null,"B","appointed","Head of House"]
[138,"honour","David E. Howard named Head of Halls",1,null,"1967",null,9,1967,null,null,null,null,null,6768,null,null,"David","Howard","Halls",null,"B","appointed","Head of House"]
[139,"honour","Paul Finch named Head of Hansons",1,null,"1967",null,9,1967,null,null,null,null,null,6768,null,null,"Paul","Finch","Hansons",null,"B","appointed","Head of House"]
[140,"honour","Hugh Templeton named Head of Johnstons",1,null,"1967",null,9,1967,null,null,null,null,null,6768,null,null,"Hugh","Templeton","Johnstons",null,"B","appointed","Head of House"]
[141,"honour","Richard Davies named Head of Orwell",1,null,"1967",null,9,1967,null,null,null,null,null,6768,null,null,"Richard","Davies","Orwell",null,"B","appointed","Head of House"]
[142,"birth","Mr Mrs Waters had daughter Sarah Elizabeth Jane",null,null,"1967",23,5,1967,null,null,null,null,null,6768]
[143,"birth","Mr Mrs Hawes had son Jonathan William",null,null,"1967",15,7,1967,null,null,null,null,null,6768]
[144,"birth","Mr Mrs Skailes had daughter Charlotte Elizabeth Rosalind",null,null,"1967",18,7,1967,null,null,null,null,null,6768]
[145,"honour","Christopher A. Curran named Head of Berners House",1,null,1968,null,9,1968,null,null,null,null,null,6869,null,null,"Christopher ","Curran","Berners",null,"HH","appointed","Head of House"]
[146,"honour","Guy R. Austin named head of Corners House",1,null,1968,null,9,1968,null,null,null,null,null,6869,null,null,"Guy","Austin","Corners",null,"HH","appointed","Head of House"]
[147,"honour","Michael C. Richards named head of Halls House",1,null,1968,null,9,1968,null,null,null,null,null,6869,null,null,"Michael","Richards","Halls",null,"HH","appointed","Head of House"]
[148,"honour","Henry Gibbons named head of Hansons House",1,null,1968,null,9,1968,null,null,null,null,null,6869,null,null,"Henry","Gibbons","Hansons",null,"HH","appointed","Head of House"]
[149,"honour","Anthony Mitton named head of Johnston's House",1,null,1968,null,9,1968,null,null,null,null,null,6869,null,null,"Anthony","Mitton","Johnstons",null,"HH","appointed","Head of House"]
[150,"honour","Charles D. Knight named head of Orwell House",1,null,1968,null,9,1968,null,null,null,null,null,6869,null,null,"Charles","Kinght","Orwell",null,"HH","appointed","Head of House"]
[151,"boys","Music legend Neil Cloake left this year",1,null,1968,null,7,1968,null,null,null,null,null,6768,null,null,"Neil","Cloake","Orwell",null,null,"left WHS"]
[152,"staffing","Brian Middlebrook left after 11 years at WHS.",null,null,1969,null,7,1968,null,null,null,null,null,null,"11 yrs",null,"Brian","Middlebrook",null,"Stringy","T","left WHS",null,null,null,null,null,null,null,"Lecturer in Education Sunderland Coll. Of Ed."]
[153,"staffing","B. S. Gorman left after teaching history and helping with games for 2 terms.",null,null,1969,null,7,1968,null,null,null,null,null,null,"2 terms",null,"B. S.","Gorman",null,null,"T","left WHS",null,null,null,"history",null,null,null,"went to Shawnigan Lake, Vancouver where Peter Josselyn taught."]
[154,"staffing","G. R. Ramm left after teaching woodwork.",null,null,1969,null,7,1968,null,null,null,null,null,null,null,null,"G. R.","Ramm",null,null,"T","left WHS",null,null,null,"woodwork"]
[155,"staffing","A. F. Clayton left after spending summer term teaching history, classics and coaching U14s XI.",null,null,1969,null,7,1968,null,null,null,null,null,null,"1 term",null,"A. F.","Clayton",null,null,"T","left WHS",null,null,null,null,null,null,null,"Aldenham School"]
[156,"staffing","Neil Clayton on sabbatical reading for MA in Linguistics at Uni. Of Essex.",null,null,1969,null,9,1969,null,null,null,null,null,null,"1 year",null,"Neil","Clayton",null,null,"T","sabbatical"]
[157,"staffing","Mrs M. Burt left WHS.",null,null,1969,null,7,1969,null,null,null,null,null,null,null,"Mrs","M","Burt",null,null,"DS","left WHS"]
[158,"staffing","Mr A. Fuller left WHS.",null,null,1969,null,7,1969,null,null,null,null,null,null,null,"Mr","A.","Fuller",null,null,"DS","left WHS"]
[159,"staffing","Miss Lyn Whyte left WHS.",null,null,1969,null,7,1969,null,null,null,null,null,null,null,"Miss","Lyn","Whyte",null,null,"DS","left WHS"]
[160,"staffing","Sister Cocks left WHS.",null,null,1969,null,7,1969,null,null,null,null,null,null,null,"Sister",null,"Cocks",null,null,"DS","left WHS","sister"]
[161,"staffing","Gunter Feneis left as German Assistant.",null,null,1969,null,7,1969,null,null,null,null,null,null,"1 year","Mr","Gunter","Feneis",null,null,"GLA","left WHS"]
[162,"staffing","Gerard Labarre left as French Assistant.",null,null,1969,null,7,1969,null,null,null,null,null,null,"1 year","Mr","Gerard","Labarre",null,null,"FLA","left WHS"]
[163,"staffing","Mrs F. A. Malden left as Johnston's Housematron.",null,null,1969,null,7,1969,null,null,null,null,null,null,"8 years","Mrs","F. A.","Malden",null,null,"HSEM","left WHS"]
[164,"staffing","Mr David Hudson started as Deputy-Headmaster",null,null,1969,null,1,1969,null,null,null,null,null,null,null,"Mr","David","Hudson",null,null,"DH","started WHS","Deputy-Head",null,null,"Geography","mountaineering/music",null,"teaching in USA & Canada - working in timber business in London - teaching at Denstone College"]
[165,"staffing","Mr Newman-Sanders arrived to teach Physics & Maths.",null,null,1969,null,9,1969,null,null,null,null,null,null,null,"Mr","A. W.","Newman-Sanders",null,null,"T","started WHS","Teacher",null,null,"Maths/Physics",null,null,"Caius Coll. Cambs - 1 year in industry - 7 years in RAF",null,"His wife is French."]
[166,"staffing","Mr J. C. Morris arrived to teach history.",null,null,1969,null,9,1969,null,null,null,null,null,null,null,"Mr","J. C.","Morris",null,null,"T","started WHS","Teacher",null,null,"History",null,null,"St Edmund Hall, Oson - former pupil at Leighton Park School, where his English teacher was Neil Clayton."]
[167,"staffing","Mr. S. L. Croft arrived to teach English.",null,null,1969,null,9,1969,null,7,1970,null,null,null,"1 year","Mr","S. L.","Croft",null,null,"T","started WHS","Teacher",null,null,"English","shooting/music/travel",null,"Leeds Uni. & Keble, Oxon - taught in India & Pakistan"]
[168,"staffing","Ben turner returned after sabbatical study year.",null,null,1969,null,9,1969,null,null,null,null,null,null,null,"Mr","Ben R.","Turner",null,null,null,"returned to WHS","Teacher",null,null,"Woodwork"]
[169,"staffing","Paul Brun from Marseilles arrived as French Assistant.",null,null,1969,null,9,1969,null,null,null,null,null,null,"1 year","Mr","Paul","Brun",null,null,"FLA","started WHS","French Assistant"]
[170,"staffing","Friedrich Schleudermann from Wuppertal arrived as German Assistant.",null,null,1969,null,9,1969,null,null,null,null,null,null,"1 year","Mr","Friedrich","Schleudermann",null,null,"GLA","started WHS","German Assistant"]
[171,"staffing","Judy Green returned from year in Vienna.",null,null,1969,null,9,1969,null,null,null,null,null,null,null,"Miss","Judy","Green",null,null,"DS","returned "]
[172,"staffing","Miss A. Ferrier started as Assistant Bursar.",null,null,1969,null,9,1969,null,null,null,null,null,null,null,"Miss"," A.","Ferrier",null,null,"ADB","started WHS","Assistant Bursar"]
[173,"staffing","Miss C. Lee started as Assistant Sister.",null,null,1969,null,9,1969,null,null,null,null,null,null,null,"Miss","C.","Lee",null,null,"AS","started WHS","Assistant Sister"]
[174,"staffing","Mr B Woolford started as Lab. Assistant.",null,null,1969,null,9,1969,null,null,null,null,null,null,null,"Mr","B","Woolford",null,null,"LAB","started WHS","Lab. Assistant"]
[175,"honour","Philip A. Laughton appointed Head Boy & Head of Hansons.",1,null,1969,null,9,1969,null,null,null,null,null,null,null,"Mr","Philip A.","Laughton",null,null,"B","appointed","Head Boy"]
[176,"death","Terry Cleverley (61-67)reported killed in road RTA in Spain",null,null,1969,null,7,1969,null,null,null,null,null,null,null,"Mr","Terry","Cleverley",null,null,"OB","died"]
[177,"death","Mrs Doreen Thurston",null,null,1969,null,null,1969,null,null,null,null,null,null,null,null,null,null,null,null,"DS","died"]
[178,"death","Mr Leo Roberts",null,null,1969,null,null,1969,null,null,null,null,null,null,null,null,null,null,null,null,"DS","died"]
[179,"death","Miss Edith Rose",null,null,1969,null,null,1969,null,null,null,null,null,null,null,null,"Edith","Rose",null,null,"DS","died"]
[180,"honour","Chris R. Curran appointed Head of Berners.",1,null,1969,null,9,1969,null,null,null,null,null,null,null,null,"Chris","Curran","Berners",null,"B","appointed","Head of House"]
[181,"honour","Guy R. Austin appointed Head of Corners.",1,null,1969,null,9,1969,null,null,null,null,null,null,null,null,"Guy","Austin","Corners",null,"B","appointed","Head of House"]
[182,"honour","Ceri. Ll Howell appointed Head of Halls.",1,null,1969,null,9,1969,null,null,null,null,null,null,null,null,"Ceri","Howell","Halls",null,"B","appointed","Head of House"]
[183,"honour","Graeme Alexander appointed Head of Johnstons.",1,null,1969,null,9,1969,null,null,null,null,null,null,null,null,"Graeme","Alexander","Johnstons",null,"B","appointed","Head of House"]
[184,"honour","Ian Turner appointed Head of Orwell.",1,null,1969,null,9,1969,null,null,null,null,null,null,null,null,"Ian","Turner","Orwell",null,"B","appointed","Head of House"]
[185,"honour","Philip A. Laughton appointed Head of Hansons",1,null,1969,null,9,1969,null,null,null,6869,null,null,null,null,"Philip","Laughton","Hansons",null,"B","appointed","Head of House"]
[186,"honour","James Cottrell appointed Cricket Captain.",1,null,1969,null,9,1969,null,null,null,6869,null,null,null,null,"James","Cotrell",null,null,"B","appointed","Cricket Captain","Mike Radford"]
[187,"honour","Ian Turner appointed Rugby Captain.",1,null,1969,null,9,1969,null,null,null,6869,null,null,null,null,"Ian","Turner",null,null,"B","appointed","Rugby Captain","James Cottrell"]
[188,"honour","David Gush appointed Sailing Captain.",1,null,1969,null,9,1969,null,null,null,null,null,6869,null,null,"David","Gush",null,null,"B","appointed","Sailing Captain"]
[189,"premises","1,000 new books added to the Library in 1968-1969 - Greg. Moon was Chief Librariyn",null,null,1969,null,9,1969,null,null,null,6869]
[190,"event","Judy Green wrote about her year in Vienna.",null,"GO",1969,null,null,1969,null,null,null,6869]
[191,"sport","Three boys including S. Davis, Peter Timms & Dave Waight played Carmarthen in Wales accompanied by Colin Hawes.",null,null,1969,null,null,1969,null,null,null,6869]
[192,"travel","Snowdon mountaineering trip: Ian Turner, Jim Wild, Paul Mattey and Derek Thornbery",null,null,1969,null,4,1969,null,null,null,6869]
[193,"activities","report on the Stowe Exchange by S.L. Parperis",null,null,1969,null,null,1969,null,null,null,6869]
[194,"staff","Mr Mrs Poole left Hansons as Housemaster & Matron",null,null,1969,null,4,1969,null,null,null,6869]
[195,"staff","Mr  Poole took over as Housemaster of Halls",null,null,1969,null,9,1969,null,null,null,6869]
[196,"honour","Henry Gibbons left Berners to take up place at Cambridge.",1,null,1969,null,7,1969,null,null,null,6869]
[197,"staff","Mr Mrs Hutchinson took over as Housemaster & Matron of Hansons.",null,null,1969,null,9,1969,null,null,null,6869,null,null,null,null,null,null,null,null,"HM","started",null,"Mr Mrs Poole"]
[198,"sport","The fencing Club scored 12 wins and no defeats against schools.",null,null,1969,null,null,null,null,null,null,null,null,6869]
[199,"M&D","\"The Royal Hunt of the Sun\" was performed",null,"GO",1969,null,null,1969,null,null,null,6869]
[200,"M&D","\"Carmina Burana\" was performed with Amberfield School.",null,"GO",1969,null,null,1969,null,null,null,6869]
[201,"M&D","\"Rope\" was performed in The Woolverstone Festival.",null,null,1969,null,null,1969,null,null,null,6869]
[202,"staffing","David Hutchinson left WHS at Christmas 1970.",null,null,1970,null,12,1970,null,null,null,null,null,7071,null,"Mr","David","Hutchinson",null,null,"teacher","left WHS","Teacher",null,null,"Maths & Geography",null,"helped with sailing"]
[203,"staffing","David Hutchinson left as Asst. Housemaster of Hansons",null,null,1970,null,12,1970,null,null,null,null,null,7071,null,"Mr","David","Hutchinson",null,null,"teacher","left WHS"]
[204,"staffing","Roger Barker left WHS, having been at WHS since  July 1963.",null,null,1970,null,7,1970,null,null,null,null,null,6970,null,"Mr","Roger","Barker",null,null,"teacher","left WHS",null,null,null,null,null,"coached U13s cricket team",null,"Deputy-Head of comprehensive school in Cornwall."]
[205,"staffing","Mr Waters left as teacher of German.",null,null,1970,null,7,1970,null,null,null,null,null,6970,null,"Mr","I.H.C. ","Waters",null,"Dick Drip","teacher","left WHS",null,null,null,null,null,"i/c U13s rugger team - introduced archery to WHS","came from R.G.S. High Wycombe"]
[206,null,"Roger Marker left as Housemaster of Corners since Jan. 1967.",null,null,1970,null,7,1970,null,null,null,null,null,6970,null,"Mr","Roger","Barker"]
[207]
[208]
[209]
[210]
[211]
[212]
[213]
[214]
[215]
[216]
[217]
[218]
[219]
[220]
[221]
[222]
[223]
[224]
[225]
[226]
[227]
[228]
[229]
[230]
[231]
[232]
[233]
[234]
[235]
[236]
[237]
[238]
[239]
[240]
[241]
[242]
[243]
[244]
[245]
[246]
[247]
[248]

{"sheet":"Sheet2","index":1,"n_rows":0,"n_cols":0,"rows_kept":0,"cut":false,"hidden":false,"merged":[]}

{"sheet":"Sheet1","index":2,"n_rows":59,"n_cols":12,"rows_kept":59,"cut":false,"hidden":false,"merged":[[4,0,4,1],[4,4,4,6],[25,9,25,10]]}
[]
[]
[]
[]
["DISTANCE",null,null,null,"TIMES"]
["METRES","YARDS",null,"TIME","METRES","SECONDS","YARDS","SECONDS"]
[1,1.0936132999999999,1,{"$f":"A7/B7","v":0.91439999861011212},10,{"$f":"E7*B7","v":10.936132999999998},{"$f":"F7*B8","v":119.59900499368896}]
[10,{"$f":"A8*$B$7","v":10.936132999999998},10,{"$f":"A8/B8","v":0.91439999861011212},{"$f":"E7+0.1","v":10.1},{"$f":"E8*B8","v":110.45494329999998}]
[{"$f":"A8+0.1","v":10.1},{"$f":"A9*$B$7","v":11.045494329999999},10.1,{"$f":"A9/B9","v":0.91439999861011212},{"$f":"E8+0.1","v":10.199999999999999},112.66404216599997]
[10.199999999999999,11.154855659999999,10.199999999999999,0.91439999861011201,10.299999999999999,114.89501329799998]
[10.299999999999999,11.264216989999998,10.299999999999999,0.91439999861011212,10.399999999999999,117.14785669599996]
[10.399999999999999,11.373578319999998,10.399999999999999,0.91439999861011201,10.499999999999998,119.42257235999996]
[10.499999999999998,11.482939649999997,10.499999999999998,0.91439999861011212,10.599999999999998,121.71916028999995,null,null,null,null,100]
[10.599999999999998,11.592300979999997,10.599999999999998,null,10.699999999999998,124.03762048599994]
[10.699999999999998,11.701662309999996,10.699999999999998,null,10.799999999999997,126.37795294799993]
[10.799999999999997,11.811023639999997,10.799999999999997,null,10.899999999999997,128.74015767599994]
[10.899999999999997,11.920384969999995,10.899999999999997,null,10.999999999999996,131.12423466999991]
[10.999999999999996,12.029746299999996,10.999999999999996,null,11.099999999999996,133.53018392999991]
[11.099999999999996,12.139107629999994,11.099999999999996,null,11.199999999999996,135.95800545599988]
[11.199999999999996,12.248468959999995,11.199999999999996,null,11.299999999999995,138.40769924799989,null,null,null,null,"100m =",1.0900000000000001]
[11.299999999999995,12.357830289999994,11.299999999999995,null,11.399999999999995,140.87926530599987]
[11.399999999999995,12.467191619999994,11.399999999999995,null,11.499999999999995,143.37270362999988]
[11.499999999999995,12.576552949999993,11.499999999999995,null,11.599999999999994,145.88801421999983,null,null,null,null,10]
[11.599999999999994,12.685914279999993,11.599999999999994,null,11.699999999999994,148.42519707599985]
[11.699999999999994,12.795275609999992,11.699999999999994,null,11.799999999999994,150.98425219799984]
[11.799999999999994,12.904636939999993,11.799999999999994,null,11.899999999999993,153.56517958599983,null,null,null,"TIME"]
[11.899999999999993,13.013998269999991,11.899999999999993,null,11.999999999999993,156.1679792399998,null,null,null,"METRES","YARDS"]
[{"$f":"A27+0.1","v":11.999999999999993},13.123359599999992,11.999999999999993,null,null,null,null,null,null,10,9.14]
[12.099999999999993,13.23272092999999,12.099999999999993,null,null,null,null,null,null,11,10.06]
[12.199999999999992,13.342082259999991,12.199999999999992,null,null,null,null,null,null,11.1,10.15]
[12.299999999999992,13.45144358999999,12.299999999999992,null,null,null,null,null,null,{"$f":"J30+0.1","v":11.2},10.24]
[12.399999999999991,13.56080491999999,12.399999999999991,null,null,null,null,null,null,{"$f":"J31+0.1","v":11.299999999999999},10.33]
[12.499999999999991,13.670166249999989,12.499999999999991,null,null,null,null,null,null,11.399999999999999,10.42]
[12.599999999999991,13.779527579999989,12.599999999999991,null,null,null,null,null,null,11.499999999999998,10.52]
[12.69999999999999,13.888888909999988,12.69999999999999,null,null,null,null,null,null,11.599999999999998,10.61]
[{"$f":"A35+0.1","v":12.79999999999999},13.998250239999988,12.79999999999999,null,null,null,null,null,null,11.699999999999998,10.7]
[12.89999999999999,14.107611569999987,12.89999999999999,null,null,null,null,null,null,11.799999999999997,10.79]
[12.999999999999989,14.216972899999988,12.999999999999989,null,null,null,null,null,null,11.899999999999997,10.88]
[null,null,null,null,null,null,null,null,null,11.999999999999996,10.97]
[null,null,null,null,null,null,null,null,null,12.099999999999996,11.06]
[null,null,null,null,null,null,null,null,null,12.199999999999996,11.16]
[null,null,null,null,null,null,null,null,null,12.299999999999995,11.25]
[null,null,null,null,null,null,null,null,null,12.399999999999995,11.34]
[null,null,null,null,null,null,null,null,null,12.499999999999995,11.43]
[null,null,null,null,null,null,null,null,null,12.599999999999994,11.52]
[null,null,null,null,null,null,null,null,null,12.699999999999994,11.61]
[null,null,null,null,null,null,null,null,null,12.799999999999994,11.7]
[null,null,null,null,null,null,null,null,null,12.899999999999993,11.8]
[null,null,null,null,null,null,null,null,null,12.999999999999993,11.89]
[null,null,null,null,null,null,null,null,null,13.099999999999993,11.98]
[null,null,null,null,null,null,null,null,null,13.199999999999992,12.07]
[null,null,null,null,null,null,null,null,null,13.299999999999992,12.16]
[null,null,null,null,null,null,null,null,null,13.399999999999991,12.25]
[null,null,null,null,null,null,null,null,null,13.499999999999991,12.34]
[null,null,null,null,null,null,null,null,null,13.599999999999991,12.44]
[null,null,null,null,null,null,null,null,null,13.69999999999999,12.53]
[null,null,null,null,null,null,null,null,null,13.79999999999999,12.62]
[null,null,null,null,null,null,null,null,null,13.89999999999999,12.71]
[null,null,null,null,null,null,null,null,null,13.999999999999989,12.8]

{"sheet":"Sheet3","index":3,"n_rows":249,"n_cols":33,"rows_kept":249,"cut":false,"hidden":false,"merged":[]}
[null,"AREA","EVENT","ACHIEV\nEMENT","LINK","IN\nJANUS","DAY","MON","YR","DAY","MON","YR","FROM","TO","ACYR","HOW\nLONG","TITLE","FIRSTNAME","LASTNAME","RE\nHOUSE","KNOWN\nAS","STATUS","WHAT","POSITION","REPLACED","REPLACED BY","SUBJECT(S)","INTERESTS","ACTIVITIES","BEFORE WHS","AFTER WHS","COMMENTS","IMAGE"]
[1,"M&D","Bach's \"Christmas Oratorio\" was performed",null,"GO","1967",16,12,1967,null,null,null,null,null,6768]
[2,"M&D","\"SWANSONG\": a recital by the 3rd YR Vth",null,"GO",1967,9,12,1967,null,null,null,null,null,6768]
[3,"M&D","\"The Strong Are Lonely\" performed on 9/10/11 December.",null,"GO",1966,9,12,1966,null,null,null,null,null,6667]
[4,"staffing","Mr McNichol arrived to teach Biology for 1 term.",null,"GO",1966,null,9,1966,null,null,null,null,null,6667,null,"Mr","UNKNOWN","McNichol",null,null,"T","started","teacher",null,null,"Biology",null,null,"University of Adelaide"]
[5,"staffing","Mr Chilton left after replacing Commander Wiseman for 6 months - Mrs Mayes replaced him as Tuckshop Manageress",null,"GO",1966,null,8,1966,null,null,null,null,null,6566,null,"Mr","J. L.","Chilton",null,null,"DS","left WHS","Bursar",null,"Mrs Mayes",null,null,null,null,"Bursar at Sentral Elec. Board at Horsley Towers in Surrey"]
[6,"wedding","Angela Bailey married Ian Beardwell in Woolverstone",null,"GO","1967",22,7,1967,null,null,null,null,null,6667]
[7,"M&D","\"It Should Happen To A Dog\" and \"Dwarfs\" (sic) - part of \"The Woolverstone Festival\"",null,"GO","1967",null,7,1967,null,null,null,null,null,6768]
[8,"M&D","school play: \"The Strong are Lonely\"",null,"GO","1967",null,7,1967,null,null,null,null,null,6768]
[9,"M&D","\"See How They Run\" - a staff drama was performed",null,"GO",1967,null,7,1967,null,null,null,null,null,6768]
[10,"M&D","Halls House play \"Noah\" was performed",null,"GO",1967,null,7,1967,null,null,null,null,null,6768]
[11,"M&D","\"The Government Inspector\" was performed.",null,"GO",1966,null,7,1966,null,null,null,null,null,6566]
[12,"M&D","\"I Killed The Count\" was performed by 3rd & 4th forms.",null,"GO",1966,null,7,1966,null,null,null,null,null,6566]
[13,"death","Commander Wiseman died",null,"GO",1966,4,6,1966,null,null,null,null,null,6566,null,"Commander","John","Wiseman",null,null,"DS","died","Bursar",null,null,null,null,null,"came with LNS in 1947 when it transferred from Maiden head"]
[14,"travel","Easter school trip to France (Poole & Ramsay)",null,"GO",1966,null,4,1966,null,null,null,null,null,6566]
[15,"travel","Expedition to Spain",null,"GO","1967",22,3,1967,null,null,null,null,null,6667]
[16,"M&D","\"Let's make an Opera\" was performed",null,"GO",1967,17,3,1967,null,null,null,null,null,6667]
[17,"staffing","Michael Watts left after being Dep. Head. since 1973.",null,"GO",1968,null,3,1968,null,null,null,null,null,6768,null,"Mr","Michael","Watts",null,null,"T","left WHS","Deputy-Head","Mr Hudson",null,null,null,null,null,"Grammar Sch. At Yarm, West Riding"]
[18,"premises","Lots of improvements to the library.",null,"GO",1966,null,null,1966,null,null,null,null,null,6566]
[19,"sport","The 1st XV played The Old Woolverstonians. Losing 9-12",null,null,"1967",16,12,1967,null,null,null,null,null,6768]
[20,"M&D","school play",null,null,1968,13,12,1968]
[21,"staffing","Mr A. Allchin left WHS as teacher of Geog. & Maths",null,null,"1967",null,12,1966,null,null,null,null,null,6667,"6 years","Mr","A.","Allchin",null,"Chinny","T","left WHS","teacher",null,null,"Geog / Maths",null,"- very active in outdoor activities, esp. sailing\n- i/c  Sea Cadets before disbandment\n- helped with DofE",null,"becomes Warden at Tynemouth Field Centre at High Borras near Lake Windermere"]
[22,"staffing","Mr H. C. A. Thomas left as Housemaster of Corners",null,null,"1967",null,12,1966,null,null,null,null,null,6667,"8 years","Mr","H.C.A.","Thomas","Corners","Tooms","T","left WHS","Housemaster",null,null,"Chemistry",null,null,null,"moved into house near end Mannings Lane"]
[23,"staffing","Mr N. McNichol left WHS as Teacher of Biology",null,null,"1967",null,12,1966,null,null,null,null,null,6667,null,"Mr","N.","McNichol","Berners",null,"T","left WHS","Teacher",null,"C. J. Hawes","Biology",null,"helped in Berners",null,"went to boarding school in Switzerland"]
[24,"staffing","Peter Bond left after 2 years teaching English",null,null,1968,null,12,1967,null,null,null,null,null,6768,null,"Mr","Peter","Bond",null,null,"T","left WHS","English Teacher",null,null,null,null,"badminton & school drama",null,"Carisbrooke G.S. I.O.W."]
[25,"staffing","Peter Bond left Johnstons as Asst. Housemaster",null,null,1968,null,12,1967,null,null,null,null,null,6768,null,"Mr","Peter","Bond","Johnstons",null,"T","left WHS","Asst. Housemaster "]
[26,"premises","new teaching block almost complete - between metalwork rooms and Sports Store",null,null,1967,null,12,1967,null,null,null,null,null,6768]
[27,"staffing","Sister K. Hamon left WHS after 9 years service",null,null,1966,null,12,1965,null,null,null,null,null,6566,null,"Sister","K.","Hamon",null,null,"DS","retired","Sister in SB",null,null,null,null,null,null,"moved to Jersey"]
[28,"staffing","Mr P. Rees left",null,null,1966,null,12,1965,null,null,null,null,null,6566,null,"Mr","P.","Rees",null,null,"T","left WHS","teacher",null,null,"English"]
[29,"staffing","Mr Claude Giletti started WHS as French  Assistant",null,null,"1967",null,10,1967,null,null,null,null,null,6768,"1 year","Mr","Claude","Giletti",null,null,"T","started WHS","Language Assistant",null,null,"French",null,null,"Uni Lyon/ Psychology"]
[30,"staffing","Miss Frances Smith started as tuckshop Manageress",null,null,"1967",null,10,1967,null,null,null,null,null,6768,null,"Miss","Frances","Smith",null,null,"DS","started","tuckshop Manageress","Mr Mann"]
[31,"staffing","Mr UNKNOWN Mann started as Chief Asst. To Mr Cockayne",null,null,"1967",null,10,1967,null,null,null,null,null,6768,null,"Mr","UNKNOWN","Mann",null,null,"DS","started","Chief Asst. To Mr Cockayne"]
[32,"staffing","Mr E.E. Gower started as Corners Gardener",null,null,"1967",null,10,1967,null,null,null,null,null,6768,null,"Mr","E.E.","Gower","Corners",null,"DS","started","Corners Gardener"]
[33,"honour","Paul Finch named Head Boy",1,null,"1967",null,9,1967,null,null,null,null,null,6768,"1 year","Mr","Paul","Finch",null,null,"P","appointed","Head Boy","Peter Lover",null,null,null,null,null,null,"also Head of Hansons House"]
[34,"staffing","Mr Francis Gruie started WHS as French Assistant",null,null,"1967",null,9,1966,null,null,null,null,null,6667,"1 year","Mr","Francis","Gruie",null,null,"T","started WHS","Language Assistant",null,null,"French"]
[35,"staffing","Mr Herman Linder started WHS as German  Assistant",null,null,"1967",null,9,1966,null,null,null,null,null,6667,"1 year","Mr","Herman","Linder",null,null,"T","started WHS","Language Assistant",null,null,"German",null,null,"Uni Munich/English & Latin"]
[36,"staffing","Gunter Feneis arrived as German Assistant.",null,null,1968,null,9,1968,null,null,null,null,null,6869,null,"Mr","Gunter","Watts",null,null,"T","arrived","German Asst."]
[37,"staffing","Gerard Labarre arrived as French Assistant.",null,null,1968,null,9,1968,null,null,null,null,null,6869,null,"Mr","Gerard","Watts",null,null,"T","arrived","French Asst."]
[38,"honour","Henry Gibbons appointed Head Boy",1,null,1968,null,9,1968,null,null,null,null,null,6869,null,"Mr","Henry","Gibons",null,null,"B","appointed","Head Boy"]
[39,"staffing","Malcolm Pool was Deputy-Head for one term.",null,null,1968,null,9,1968,null,null,null,null,null,6869,null,"Mr","Malcolm A. R.","Poole",null,null,"T","started","Temp. Deputy-Head","Michael Watts","Peter Hudson"]
[40,"staffing","The new Bursar arrived: Norman Cockayne.",null,null,1966,null,9,1966,null,null,null,null,null,6566,null,"Mr","Norman","Cockayne",null,null,"DS","arrived","Bursar","Commander Wiseman",null,null,null,null,"Admin Officer with ILEA in Countxy Hall - previously with LCC Ed. Service since 1936"]
[41,"honour","Peter Lover appointed Head Boy.",1,null,1966,null,9,1966,null,null,null,null,null,6566,null,"Mr","Peter","Lover",null,null,"B","appointed","Head Boy","V. Lockett"]
[42,"staffing","Sister M. D. Godwin appointed i/s Sick Bay.",null,null,1966,null,9,1966,null,null,null,null,null,6566,null,"Miss","S. D.","Godwin",null,null,"DS","started","i/c Sick Bay"]
[43,"staffing","Sister M. D. Godwin arrived as nurse.",null,null,1966,null,9,1965,null,null,null,null,null,6566,null,"Miss","S. D.","Godwin",null,null,"DS","started","nurse"]
[44,"wedding","Glenys Talbot married Glyn Pettit in Shropshire",null,null,1967,29,7,1967,null,null,null,null,null,6667]
[45,"official","Speech Day - M. Lockett gave vote of thanks",null,null,1966,16,7,1966,null,null,null,null,null,6566]
[46,"official","Speech Day - Mrs Chaplin presided - Paul Lover made a speech",null,null,"1967",15,7,1967,null,null,null,null,null,6667]
[47,"staffing","Mrs UNKNOWN Wells started as Assistant Bursar to Miss Shaw",null,null,"1967",null,7,1967,null,null,null,null,null,6768,null,"Mrs","UNKNOWN","Wells",null,null,"DS","started","Assistant Bursar to Miss Shaw","Glenys Talbot"]
[48,"staffing","Mr Francis Gruie left WHS as French Language Assistant",null,null,"1967",null,7,1967,null,null,null,null,null,6566,"1 year","Mr","Francis","Gruie",null,null,"T","left WHS","Language Assistant",null,"Claude Giletti","French"]
[49,"staffing","Ms Glenys Talbot left as Asst. Dom. Bursar",null,null,"1967",null,7,1967,null,null,null,null,null,6667,"1 year","Ms","Glenys","Talbot",null,null,"DS","left WHS","Asst. Dom. Bursar",null,null,null,null,null,null,null,"got married July 29th 1967 to Mr Glyn Pettit"]
[50,"staffing","Mr Herman Linder left WHS as German Assistant",null,null,"1967",null,7,1967,null,null,null,null,null,6667,"1 year","Mr","Herman","Linder",null,null,"T","left WHS","Language Assistant"]
[51,"M&D","school play: \"Chips With Everything\"",null,null,"1967",null,7,1967,null,null,null,null,null,6768]
[52,"staffing","Mr Anton Presisegger left WHS as German Assistant",null,null,"1967",null,7,1966,null,null,null,null,null,6667,"1 year","Mr","Anton","Presisegger",null,null,"T","left WHS","Language Assistant",null,"Hermann Linder","German",null,null,null,"returned to Vienna"]
[53,"staffing","Hermann Linder left as German Assistant.",null,null,1968,null,7,1967,null,null,null,null,null,6768,null,"Mr","Herman","Linder",null,null,"T","left WHS","German Asst."]
[54,"staffing","Claude Giletti left as French Assistant.",null,null,1968,null,7,1968,null,null,null,null,null,6768,null,"Mr","Claude","Giletti",null,null,"T","left WHS","French Asst."]
[55,"academic","Richard D. Davies awarded Open Exhibition to St Johns College, Cambridge",1,null,1968,null,7,68,null,null,null,null,null,6768,null,"Mr","Richard","Davies",null,null,"B"," Open Ex."]
[56,"wedding","Joan Meeds married Peter Bond in Ipswich",null,null,1967,null,7,1967,null,null,null,null,null,6667]
[57,"staffing","Hans Buchanan, the German Assistant, left.",null,null,1966,null,7,1966,null,null,null,null,null,6566,null,"Mr","Hans","Buchmann",null,null,"T","left WHS","Language Assistant",null,null,"German",null,null,null,"returned to Switzerland"]
[58,"academic","Peter McNair won Open Exhibition in History to Selwyn College, Cambridge.",1,null,1966,null,7,1966,null,null,null,null,null,6566,null,"Mr","Peter","McNair",null,null,"B","Open Ex."]
[59,"academic","Geraint L. Howell won Open Exhibition in History to Jesus College, Oxford.",1,null,1966,null,7,1966,null,null,null,null,null,6566,null,"Mr","Geraint L.","Howell",null,null,"B"," Open Ex."]
[60,"premises","\"The Holly\" acquired by school - Bursar lives on ground floor - top floor to be converted into 2 flats.",null,null,1966,null,7,1966,null,null,null,null,null,6667]
[61,"sport","M. Lockett won the Senior X-Country by 49s in 24m17s.",1,null,1966,null,7,1966,null,null,null,null,null,6566,null,null,null,null,null,null,"B"]
[62,"birth","Mr Mrs Turner had son Robert",null,null,1968,13,6,1968]
[63,"birth","Mr Mrs Hutchinson had son Richard Alexander Jonathan",null,null,1968,3,5,1968]
[64,"staffing","Miss J. Meeds came as Asst. Sister in SB.",null,null,1966,null,5,1966,null,null,null,null,null,6667,null,"Miss","J.","Meeds",null,null,"DS","started","Sister",null,null,null,null,null,"Avery Hill Tchr. Training Coll."]
[65,"staffing","C. Westlake spent 1 term teaching History",null,null,1968,null,4,1968,null,null,null,null,null,6768,"1 term","Mr","C.","Westlake",null,null,"T","left WHS","Teacher",null,null,"History",null,null,"P.G.C.E. At Cambridge","Queen Mary's G.S. Walsall, Brian Middlebrook's old school"]
[66,"birth","Mr Mrs Watts had son Joseph",null,null,1968,null,4,1968]
[67,"staffing","Mr J. McKenzie left after teaching Art for 2 years and serving as Orwell Asst. Housemaster",null,null,1966,null,4,1966,null,null,null,null,null,6566,null,"Mr","J.","McKenzie",null,null,"T","left WHS","teacher",null,null,"Art",null,"worked in Printing Society and on stage sets",null,"a school in New Zealand"]
[68,"staffing","Hans Buchanan, the German Assistant, left.",null,null,1966,null,4,1966,null,null,null,null,null,6566,null,"Mr","UNKNOWN","Scott",null,null,"T","left WHS","Asst. Domestic Bursar"]
[69,"staffing","Miss G. Talbot arrived as Asst, Bursar.",null,null,1966,null,4,1966,null,null,null,null,null,6566,null,"Miss","G.","Talbot",null,null,"DS","started","Asst. Bursar"]
[70,"staffing","Mike Coulter arrived to take over Art Department.",null,null,1966,null,4,1966,null,null,null,null,null,6667,null,"Mr","Mike J.","Coulter",null,null,"T","started","Head of Dept.","Ernie Green",null,"Art",null,null,"Rising Brook School in Stafford"]
[71,"staffing","Mike Coulter appointed Asst Housemaster of Halls.",null,null,1966,null,4,1966,null,null,null,null,null,6667,null,"Mr","Mike J.","Coulter","Halls",null,"T","started","Asst. Housemaster Halls"]
[72,"staffing","Mr S. S. Tong came as Student Teacher for Easter term.",null,null,1966,null,4,1966,null,null,null,null,null,6566,null,"Mr","S. S. ","Tong",null,null,"ST","started","student tchr.",null,null,"English"]
[73,"staffing","Mr C. Jones came as Student Teacher for Easter term.",null,null,1966,null,4,1966,null,null,null,null,null,6566,null,"Mr","C. ","Jones",null,null,"ST","started","student tchr.",null,null,"Maths",null,null,null,"teaching in Oundle"]
[74,"staffing","Mr R. Elms came as Student Teacher for Easter term.",null,null,1966,null,4,1966,null,null,null,null,null,6566,null,"Mr","R.","Elms",null,null,"ST","started","student tchr.","Mr Cox",null,"Physics",null,null,null,"V.S.O. In Nigeria"]
[75,"Old Boys","Old Boys' Association Annual General Meeting",null,null,"1967",22,3,1967,null,null,null,null,null,6667]
[76,"event","Virus \"B\" filled Sick Bay and caused cancellation of the Stowe Exchange.",null,null,1966,null,2,1966,null,null,null,null,null,6566]
[77,"birth","Mr Mrs Mann had daughter Nicola Jane",null,null,1968,30,1,1968]
[78,"staffing","Mr R.W. Barker started WHS as Housemaster",null,null,"1967",null,1,1967,null,null,null,null,null,6768,null,"Mr","R.W.","Barker","Corners",null,"T","started WHS","Housemaster","H.C.A. Thomas",null,"Maths"]
[79,"staffing","Mr Colin J. Hawes started WHS as Teacher of Biology",null,null,"1967",null,1,1967,null,null,null,null,null,6667,null,"Mr","Colin J.","Hawes",null,null,"T","started WHS","Teacher","N. McNichol",null,"Biology",null,null,"Northgate G.S./BSc. London Univ.\r\nYear at Exeter Univ. Researching Plant Pathology"]
[80,"staffing","Mr Colin J. Hawes started as Asst. Housemaster of Berners",null,null,"1967",null,1,1967,null,null,null,null,null,6667,null,"Mr","Colin J.","Hawes","Berners",null,"T","started","Asst. Housemaster",null,null,"Biology",null,null,"Northgate G.S./BSc. London Univ.\r\nYear at Exeter Univ. Researching Plant Pathology"]
[81,"staffing","Mr R.P.D. Hutchinson started WHS as Teacher",null,null,"1967",null,1,1967,null,null,null,null,null,6667,null,"Mr","R.P.D.","Hutchinson",null,null,"T","started WHS","Teacher","Mr Allchin",null,"Geography",null,null,"Newcastle Uni/Crosse & Blackwell/2.5 yrs teaching in rural Tanzania"]
[82,"staffing","Mr R.W Barker replaced Mr Thomas as Housemaster of Corners",null,null,"1967",null,1,1967,null,null,null,null,null,6667,null,"Mr","R.W","Barker","Corners",null,"T","started","Housemaster","H.C.A. Thomas"]
[83,"staffing","Mr UNKNOWN Jones started as student teacher of Mod Langs",null,null,"1967",null,1,1967,null,null,null,null,null,6667,"1 term","Mr","UNKNOWN","Jones",null,null,"T","started","Student Teacher",null,null,"French & German",null,null,"from Oxford","teaching in France"]
[84,"staffing","Student Mr UNKNOWN Strickland started as Maths Teacher",null,null,"1967",null,1,1967,null,null,null,null,null,6667,"1 term","Mr","UNKNOWN","Strickland",null,null,"T","started","Student Teacher",null,null,"Maths",null,null,"from Cambridge","Wycliffe College Worcs"]
[85,"staffing","Mike J. Coulter replaced Brian Middlebrook as Housemaster of Halls",null,null,"1967",null,1,1967,null,null,null,null,null,6768,"1 year","Mr","Mike J.","Coulter","Halls",null,"T","started","Housemaster","Brian Middlebrook"]
[86,"staffing","Peter Hudson arrived as Deputy-Head",null,null,1968,null,1,1969,null,null,null,null,null,6869,null,"Mr","Peter","Hudson",null,null,"T","arrived","Deputy-Head","Malcolm Poole",null,null,null,null,"Denstone College"]
[87,"staffing","Rev. T Johnstone arrived as \"Asst. English Master\" for 1 term",null,null,1968,null,1,1968,null,null,null,null,null,6768,"1 term","Mr","T. ","Johnstone",null,null,"T","arrived","Teacher",null,null,"English",null,null,null,null,"from Buenos Aires - polyglot & expert on Baron Munchhausen"]
[88,"staffing","Peter Bond arrived to teach English.",null,null,1966,null,1,1966,null,null,null,null,null,6566,null,"Mr","Peter D.","Bond",null,null,"T","started","teacher",null,null,"English",null,null,"Cambridge, Army & 5 yrs teaching in Malaya & then at Sidcup G.S."]
[89,"staffing","Mr Brian Middlebrook on sabbatical doing Educational Psychology at Cambridge",null,null,"1967",null,null,1967,null,null,null,null,null,6768,"1 year","Mr","Brian","Middlebrook","Halls","Stringy","T","on leave",null,null,"Mike Coulter","Latin",null,null,null,null,"course on Educational Psychology at Cambridge"]
[90,"honour","Paul Finch awarded  Open Scholarship in History  to Selwyn College Cambridge",1,null,1968,null,null,null,null,null,null,null,null,null,null,null,"Paul","Finch",null,null,null,"Open Scholarship"]
[91,"honour","G. Egan won Travelling Scholarship to France",1,null,1968]
[92,"honour","R.R. Austin awarded R.A.F. Flying Scholarship",1,null,1968]
[93,"sport","Nusrat Nazeer scored 100 n.n. V King's Macclesfield & took 7 wickets for 18 runs v Norwich School",null,null,1967,null,null,1967,null,null,null,null,null,6667]
[94,"M&D","150 boys now learn and play at least one musical instrument",null,null,1967,null,null,1967,null,null,null,null,null,6768]
[95,"premises","alterations to \"The Holly\" completed - occupied by Miss K-Shaw & Miss Smith",null,null,1967,null,null,1967,null,null,null,null,null,6768]
[96,"sport","The 1st XV beat Colchester  22-8 and lost NO matches against schools; only drawing 3-3 with Wymondham",1,null,1967,null,null,1967,null,null,null,null,null,6667]
[97,"premises","The swimming-pool now has a cover!",null,null,1967,null,null,1967,null,null,null,null,null,6667]
[98,"event","The WHS-STOWE Exchange took place",null,null,1967,null,null,1967,null,null,null,null,null,6667]
[99,"event","The parents Ass. Replaced one of the Enterprise boats and paid for the paving round the swimming-pool",null,null,1966,null,null,1966,null,null,null,null,null,6566]
[100,"sport","Phil Davies represented Suffolk in All-England Athletics Champ. for 3rd time.",1,null,1966,null,null,1966,null,null,null,null,null,6566,null,null,"Philip","Davies","Berners","Ugg","B","All-England"]
[101,"staffing","Mr Farthing left as Corners Gardener after a series of illnesses.",null,null,1966,null,null,1966,null,null,null,null,null,6566,null,null,null,null,null,null,"DS",null,"Gardener",null,"Mr Gower"]
[102,"honour","Peter Lover won the Rowland Memorial Prize.",1,null,1966,null,null,1966,null,null,null,null,null,6566,null,"Mr","Peter","Lover",null,null,"B","won prize","Head Boy"]
[103,"honour","David Pearn qualified for V.S.O. In Zambia.",1,null,1966,null,null,1966,null,null,null,null,null,6566,null,null,"David","Pearn","Halls",null,"B"]
[104,"staffing","Peter Sadler got married.",null,null,1966,null,null,1966,null,null,null,null,null,6566,null,null,"Peter","Sadler","Berners",null,"T"]
[105,"sport","Loch Trimminglam and Goodman awarded athletics colours, very unusual for IVth formers.",1,null,1966,null,null,1966,null,null,null,null,null,6566,null,null,null,null,null,null,"B"]
[106,"event","Leslie Woolford visited WHS to give a talk on history of WHS.",null,null,1966,null,null,1966,null,null,null,null,null,6566,null,null,"Leslie","Woolford",null,null,"FT"]
[107,"sport","Only ONE MATCH was lost to a school by the top SIX RUGBY TEAMS.",1,null,1966,null,null,1966,null,null,null,null,null,6566]
[108,"sport","Phil Davies won the 100 yards in 10.4 seconds.",1,null,1966,null,null,1966,null,null,null,null,null,6566,null,null,null,null,null,null,"B"]
[109,"M&D","\"The St John Passion\" was performed.",null,null,1966,null,null,1966,null,null,null,null,null,6566]
[110,"premises","the new science block was completed",null,null,1968,null,9,1968,null,null,null,null,null,6869]
[111,"premises","the Art Room was extended",null,null,1968,null,9,1968,null,null,null,null,null,6869]
[112,"premises","Old Staffroom given up for Library extension - staff now using two rooms in former Deputy-Head's house",null,null,1968,null,9,1968,null,null,null,null,null,6869]
[113,"official","Speech Day",null,null,1968,13,7,1968,null,null,null,null,null,6768]
[114,"official","Mrs A Forbes-Cockell became new Chairman of Governors",null,null,1968,null,null,null,null,null,null,null,null,6869,null,null,null,null,null,null,null,"appointed"]
[115,"birth","Mr Mrs Clayton had son Roderick Edward",null,null,1968,18,9,1968,null,null,null,null,null,6869]
[116,"birth","Mr Mrs Sadler had daughter Tanja",null,null,1968,7,10,1968,null,null,null,null,null,6869]
[117,"sport","John Martin represented Suffolk in the All-England Meeting",1,null,1968,null,7,1968,null,null,null,null,null,6768,null,null,"John","Martin"]
[118,"sport","Orwell won the inter-house athletics competition for 5th successive year.",1,null,1968,null,7,1968,null,null,null,null,null,6768,null,null,null,null,null,null,null,"left WHS"]
[119,"boys","Music legend Richard Davis left this year",1,null,1968,null,7,1968,null,null,null,null,null,6768,null,null,"Richard"," Davis","Orwell",null,null,"left WHS"]
[120,"M&D","\"Crime and Punishment\" was performed",null,"GO",1968,null,7,1968,null,null,null,null,null,6768,null,null,null,null,null,null,null,null,null,null,null,null,null,null,null,null,"assumed July - no date found"]
[121,"M&D","\"Journey's End\" was performed",null,"GO",1968,null,7,1968,null,null,null,null,null,6768]
[122,"travel","School trip to Austria led by Mr Waters and Mr Coulter",null,null,1968,null,7,1968,null,null,null,null,null,6768]
[123,"honour","Barry Clark awarded Distinction in Teaching Practice at College of St. Mark & St. John",1,null,1968,null,null,1968,null,null,null,null,null,6768]
[124,"honour","Mark Wing-Davey named Head of Orwell House",1,null,1966,null,null,1966,null,null,null,null,null,6667,null,null,"Mark","Wing-Davey","Orwell",null,"HH","appointed","Head of House"]
[125,"honour","Anthony Pye named Head of Berners House",1,null,1966,null,null,1966,null,null,null,null,null,6667,null,null,"Anthony","Pye","Berners",null,"HH","appointed","Head of House"]
[126,"honour","Peter Lover named Head of Halls House",1,null,1966,null,null,1966,null,null,null,null,null,6667,null,null,"Peter","Lover","Halls",null,"HH","appointed","Head of House"]
[127,"honour","Ian McEwan named  Head of Johnstons House",1,null,1966,null,null,1966,null,null,null,null,null,6667,null,null,"Ian","McEwan","Johnstons",null,"HH","appointed","Head of House"]
[128,"honour","Dennis Lingard names Head of Hansons House",1,null,1966,null,null,1966,null,null,null,null,null,6667,null,null,"Dennis","Lingard","Hansons",null,"HH","appointed","Head of House"]
[129,"honour","David G. Neale named Head of Corners House",1,null,1966,null,null,1966,null,null,null,null,null,6667,null,null,"David G.","Neale","Corners",null,"HH","appointed","Head of House"]
[130,"honour","Peter Daish appointed Captain of Cricket",1,null,1966,null,null,1966,null,null,null,null,null,6667,null,null,"Peter","Daish",null,null,"CC","appointed","Cricket Captain"]
[131,"honour","Peter Jones appointed Captain of Rugby",1,null,1967,null,null,1966,null,null,null,null,null,6667,null,null,"Peter","Jones",null,null,"CR",null,"Cricket Rugby"]
[132,"M&D","Peter Lover produced Vith form's \"Waiting for Godot\"",1,"GO",1966,null,7,1966,null,null,null,null,null,6566,null,"Mr","Peter","Lover",null,null,"B"]
[133,"sport","The staff beat the boys in the football match 1-0.",null,"GO",1966,null,7,1966,null,null,null,null,null,6566]
[134,"M&D","\"Breaking Point\" produced by Upper Vith",null,"GO",1966,null,7,1966,null,null,null,null,null,6566]
[135,"travel","Austria & Germany (Thornbery, Davies & Wild)",null,"GO",1966,null,8,1966,null,null,null,null,null,6566]
[136,"honour","Michael J. Radford named Head of Berners",1,null,"1967",null,9,1967,null,null,null,null,null,6768,null,null,"Michael","Radford","Berners",null,"B","appointed","Head of House"]
[137,"honour","Franklin C. Grigor named Head of Corners",1,null,"1967",null,9,1967,null,null,null,null,null,6768,null,null,"Franklin","Grigor","Corners",null,"B","appointed","Head of House"]
[138,"honour","David E. Howard named Head of Halls",1,null,"1967",null,9,1967,null,null,null,null,null,6768,null,null,"David","Howard","Halls",null,"B","appointed","Head of House"]
[139,"honour","Paul Finch named Head of Hansons",1,null,"1967",null,9,1967,null,null,null,null,null,6768,null,null,"Paul","Finch","Hansons",null,"B","appointed","Head of House"]
[140,"honour","Hugh Templeton named Head of Johnstons",1,null,"1967",null,9,1967,null,null,null,null,null,6768,null,null,"Hugh","Templeton","Johnstons",null,"B","appointed","Head of House"]
[141,"honour","Richard Davies named Head of Orwell",1,null,"1967",null,9,1967,null,null,null,null,null,6768,null,null,"Richard","Davies","Orwell",null,"B","appointed","Head of House"]
[142,"birth","Mr Mrs Waters had daughter Sarah Elizabeth Jane",null,null,"1967",23,5,1967,null,null,null,null,null,6768]
[143,"birth","Mr Mrs Hawes had son Jonathan William",null,null,"1967",15,7,1967,null,null,null,null,null,6768]
[144,"birth","Mr Mrs Skailes had daughter Charlotte Elizabeth Rosalind",null,null,"1967",18,7,1967,null,null,null,null,null,6768]
[145,"honour","Christopher A. Curran named Head of Berners House",1,null,1968,null,9,1968,null,null,null,null,null,6869,null,null,"Christopher ","Curran","Berners",null,"HH","appointed","Head of House"]
[146,"honour","Guy R. Austin named head of Corners House",1,null,1968,null,9,1968,null,null,null,null,null,6869,null,null,"Guy","Austin","Corners",null,"HH","appointed","Head of House"]
[147,"honour","Michael C. Richards named head of Halls House",1,null,1968,null,9,1968,null,null,null,null,null,6869,null,null,"Michael","Richards","Halls",null,"HH","appointed","Head of House"]
[148,"honour","Henry Gibbons named head of Hansons House",1,null,1968,null,9,1968,null,null,null,null,null,6869,null,null,"Henry","Gibbons","Hansons",null,"HH","appointed","Head of House"]
[149,"honour","Anthony Mitton named head of Johnston's House",1,null,1968,null,9,1968,null,null,null,null,null,6869,null,null,"Anthony","Mitton","Johnstons",null,"HH","appointed","Head of House"]
[150,"honour","Charles D. Knight named head of Orwell House",1,null,1968,null,9,1968,null,null,null,null,null,6869,null,null,"Charles","Kinght","Orwell",null,"HH","appointed","Head of House"]
[151,"boys","Music legend Neil Cloake left this year",1,null,1968,null,7,1968,null,null,null,null,null,6768,null,null,"Neil","Cloake","Orwell",null,null,"left WHS"]
[152,"staffing","Brian Middlebrook left after 11 years at WHS.",null,null,1969,null,7,1968,null,null,null,null,null,null,"11 yrs",null,"Brian","Middlebrook",null,"Stringy","T","left WHS",null,null,null,null,null,null,null,"Lecturer in Education Sunderland Coll. Of Ed."]
[153,"staffing","B. S. Gorman left after teaching history and helping with games for 2 terms.",null,null,1969,null,7,1968,null,null,null,null,null,null,"2 terms",null,"B. S.","Gorman",null,null,"T","left WHS",null,null,null,"history",null,null,null,"went to Shawnigan Lake, Vancouver where Peter Josselyn taught."]
[154,"staffing","G. R. Ramm left after teaching woodwork.",null,null,1969,null,7,1968,null,null,null,null,null,null,null,null,"G. R.","Ramm",null,null,"T","left WHS",null,null,null,"woodwork"]
[155,"staffing","A. F. Clayton left after spending summer term teaching history, classics and coaching U14s XI.",null,null,1969,null,7,1968,null,null,null,null,null,null,"1 term",null,"A. F.","Clayton",null,null,"T","left WHS",null,null,null,null,null,null,null,"Aldenham School"]
[156,"staffing","Neil Clayton on sabbatical reading for MA in Linguistics at Uni. Of Essex.",null,null,1969,null,9,1969,null,null,null,null,null,null,"1 year",null,"Neil","Clayton",null,null,"T","sabbatical"]
[157,"staffing","Mrs M. Burt left WHS.",null,null,1969,null,7,1969,null,null,null,null,null,null,null,"Mrs","M","Burt",null,null,"DS","left WHS"]
[158,"staffing","Mr A. Fuller left WHS.",null,null,1969,null,7,1969,null,null,null,null,null,null,null,"Mr","A.","Fuller",null,null,"DS","left WHS"]
[159,"staffing","Miss Lyn Whyte left WHS.",null,null,1969,null,7,1969,null,null,null,null,null,null,null,"Miss","Lyn","Whyte",null,null,"DS","left WHS"]
[160,"staffing","Sister Cocks left WHS.",null,null,1969,null,7,1969,null,null,null,null,null,null,null,"Sister",null,"Cocks",null,null,"DS","left WHS","sister"]
[161,"staffing","Gunter Feneis left as German Assistant.",null,null,1969,null,7,1969,null,null,null,null,null,null,"1 year","Mr","Gunter","Feneis",null,null,"GLA","left WHS"]
[162,"staffing","Gerard Labarre left as French Assistant.",null,null,1969,null,7,1969,null,null,null,null,null,null,"1 year","Mr","Gerard","Labarre",null,null,"FLA","left WHS"]
[163,"staffing","Mrs F. A. Malden left as Johnston's Housematron.",null,null,1969,null,7,1969,null,null,null,null,null,null,"8 years","Mrs","F. A.","Malden",null,null,"HSEM","left WHS"]
[164,"staffing","Mr David Hudson started as Deputy-Headmaster",null,null,1969,null,1,1969,null,null,null,null,null,null,null,"Mr","David","Hudson",null,null,"DH","started WHS","Deputy-Head",null,null,"Geography","mountaineering/music",null,"teaching in USA & Canada - working in timber business in London - teaching at Denstone College"]
[165,"staffing","Mr Newman-Sanders arrived to teach Physics & Maths.",null,null,1969,null,9,1969,null,null,null,null,null,null,null,"Mr","A. W.","Newman-Sanders",null,null,"T","started WHS","Teacher",null,null,"Maths/Physics",null,null,"Caius Coll. Cambs - 1 year in industry - 7 years in RAF",null,"His wife is French."]
[166,"staffing","Mr J. C. Morris arrived to teach history.",null,null,1969,null,9,1969,null,null,null,null,null,null,null,"Mr","J. C.","Morris",null,null,"T","started WHS","Teacher",null,null,"History",null,null,"St Edmund Hall, Oson - former pupil at Leighton Park School, where his English teacher was Neil Clayton."]
[167,"staffing","Mr. S. L. Croft arrived to teach English.",null,null,1969,null,9,1969,null,7,1970,null,null,null,"1 year","Mr","S. L.","Croft",null,null,"T","started WHS","Teacher",null,null,"English","shooting/music/travel",null,"Leeds Uni. & Keble, Oxon - taught in India & Pakistan"]
[168,"staffing","Ben turner returned after sabbatical study year.",null,null,1969,null,9,1969,null,null,null,null,null,null,null,"Mr","Ben R.","Turner",null,null,null,"returned to WHS","Teacher",null,null,"Woodwork"]
[169,"staffing","Paul Brun from Marseilles arrived as French Assistant.",null,null,1969,null,9,1969,null,null,null,null,null,null,"1 year","Mr","Paul","Brun",null,null,"FLA","started WHS","French Assistant"]
[170,"staffing","Friedrich Schleudermann from Wuppertal arrived as German Assistant.",null,null,1969,null,9,1969,null,null,null,null,null,null,"1 year","Mr","Friedrich","Schleudermann",null,null,"GLA","started WHS","German Assistant"]
[171,"staffing","Judy Green returned from year in Vienna.",null,null,1969,null,9,1969,null,null,null,null,null,null,null,"Miss","Judy","Green",null,null,"DS","returned "]
[172,"staffing","Miss A. Ferrier started as Assistant Bursar.",null,null,1969,null,9,1969,null,null,null,null,null,null,null,"Miss"," A.","Ferrier",null,null,"ADB","started WHS","Assistant Bursar"]
[173,"staffing","Miss C. Lee started as Assistant Sister.",null,null,1969,null,9,1969,null,null,null,null,null,null,null,"Miss","C.","Lee",null,null,"AS","started WHS","Assistant Sister"]
[174,"staffing","Mr B Woolford started as Lab. Assistant.",null,null,1969,null,9,1969,null,null,null,null,null,null,null,"Mr","B","Woolford",null,null,"LAB","started WHS","Lab. Assistant"]
[175,"honour","Philip A. Laughton appointed Head Boy & Head of Hansons.",1,null,1969,null,9,1969,null,null,null,null,null,null,null,"Mr","Philip A.","Laughton",null,null,"B","appointed","Head Boy"]
[176,"death","Terry Cleverley (61-67)reported killed in road RTA in Spain",null,null,1969,null,7,1969,null,null,null,null,null,null,null,"Mr","Terry","Cleverley",null,null,"OB","died"]
[177,"death","Mrs Doreen Thurston",null,null,1969,null,null,1969,null,null,null,null,null,null,null,null,null,null,null,null,"DS","died"]
[178,"death","Mr Leo Roberts",null,null,1969,null,null,1969,null,null,null,null,null,null,null,null,null,null,null,null,"DS","died"]
[179,"death","Miss Edith Rose",null,null,1969,null,null,1969,null,null,null,null,null,null,null,null,"Edith","Rose",null,null,"DS","died"]
[180,"honour","Chris R. Curran appointed Head of Berners.",1,null,1969,null,9,1969,null,null,null,null,null,null,null,null,"Chris","Curran","Berners",null,"B","appointed","Head of House"]
[181,"honour","Guy R. Austin appointed Head of Corners.",1,null,1969,null,9,1969,null,null,null,null,null,null,null,null,"Guy","Austin","Corners",null,"B","appointed","Head of House"]
[182,"honour","Ceri. Ll Howell appointed Head of Halls.",1,null,1969,null,9,1969,null,null,null,null,null,null,null,null,"Ceri","Howell","Halls",null,"B","appointed","Head of House"]
[183,"honour","Graeme Alexander appointed Head of Johnstons.",1,null,1969,null,9,1969,null,null,null,null,null,null,null,null,"Graeme","Alexander","Johnstons",null,"B","appointed","Head of House"]
[184,"honour","Ian Turner appointed Head of Orwell.",1,null,1969,null,9,1969,null,null,null,null,null,null,null,null,"Ian","Turner","Orwell",null,"B","appointed","Head of House"]
[185,"honour","Philip A. Laughton appointed Head of Hansons",1,null,1969,null,9,1969,null,null,null,6869,null,null,null,null,"Philip","Laughton","Hansons",null,"B","appointed","Head of House"]
[186,"honour","James Cottrell appointed Cricket Captain.",1,null,1969,null,9,1969,null,null,null,6869,null,null,null,null,"James","Cotrell",null,null,"B","appointed","Cricket Captain","Mike Radford"]
[187,"honour","Ian Turner appointed Rugby Captain.",1,null,1969,null,9,1969,null,null,null,6869,null,null,null,null,"Ian","Turner",null,null,"B","appointed","Rugby Captain","James Cottrell"]
[188,"honour","David Gush appointed Sailing Captain.",1,null,1969,null,9,1969,null,null,null,null,null,6869,null,null,"David","Gush",null,null,"B","appointed","Sailing Captain"]
[189,"premises","1,000 new books added to the Library in 1968-1969 - Greg. Moon was Chief Librariyn",null,null,1969,null,9,1969,null,null,null,6869]
[190,"event","Judy Green wrote about her year in Vienna.",null,"GO",1969,null,null,1969,null,null,null,6869]
[191,"sport","Three boys including S. Davis, Peter Timms & Dave Waight played Carmarthen in Wales accompanied by Colin Hawes.",null,null,1969,null,null,1969,null,null,null,6869]
[192,"travel","Snowdon mountaineering trip: Ian Turner, Jim Wild, Paul Mattey and Derek Thornbery",null,null,1969,null,4,1969,null,null,null,6869]
[193,"activities","report on the Stowe Exchange by S.L. Parperis",null,null,1969,null,null,1969,null,null,null,6869]
[194,"staff","Mr Mrs Poole left Hansons as Housemaster & Matron",null,null,1969,null,4,1969,null,null,null,6869]
[195,"staff","Mr  Poole took over as Housemaster of Halls",null,null,1969,null,9,1969,null,null,null,6869]
[196,"honour","Henry Gibbons left Berners to take up place at Cambridge.",1,null,1969,null,7,1969,null,null,null,6869]
[197,"staff","Mr Mrs Hutchinson took over as Housemaster & Matron of Hansons.",null,null,1969,null,9,1969,null,null,null,6869,null,null,null,null,null,null,null,null,"HM","started",null,"Mr Mrs Poole"]
[198,"sport","The fencing Club scored 12 wins and no defeats against schools.",null,null,1969,null,null,null,null,null,null,null,null,6869]
[199,"M&D","\"The Royal Hunt of the Sun\" was performed",null,"GO",1969,null,null,1969,null,null,null,6869]
[200,"M&D","\"Carmina Burana\" was performed with Amberfield School.",null,"GO",1969,null,null,1969,null,null,null,6869]
[201,"M&D","\"Rope\" was performed in The Woolverstone Festival.",null,null,1969,null,null,1969,null,null,null,6869]
[202,"staffing","David Hutchinson left WHS at Christmas 1970.",null,null,1970,null,12,1970,null,null,null,null,null,7071,null,"Mr","David","Hutchinson",null,null,"teacher","left WHS","Teacher",null,null,"Maths & Geography",null,"helped with sailing"]
[203,"staffing","David Hutchinson left as Asst. Housemaster of Hansons",null,null,1970,null,12,1970,null,null,null,null,null,7071,null,"Mr","David","Hutchinson",null,null,"teacher","left WHS"]
[204,"staffing","Roger Barker left WHS, having been at WHS since  July 1963.",null,null,1970,null,7,1970,null,null,null,null,null,6970,null,"Mr","Roger","Barker",null,null,"teacher","left WHS",null,null,null,null,null,"coached U13s cricket team",null,"Deputy-Head of comprehensive school in Cornwall."]
[205,"staffing","Mr Waters left as teacher of German.",null,null,1970,null,7,1970,null,null,null,null,null,6970,null,"Mr","I.H.C. ","Waters",null,"Dick Drip","teacher","left WHS",null,null,null,null,null,"i/c U13s rugger team - introduced archery to WHS","came from R.G.S. High Wycombe"]
[206,null,"Roger Barker left as Housemaster of Corners since Jan. 1967.",null,null,1970,null,7,1970,null,null,null,null,null,6970,null,"Mr","Roger","Barker"]
[207]
[208]
[209]
[210]
[211]
[212]
[213]
[214]
[215]
[216]
[217]
[218]
[219]
[220]
[221]
[222]
[223]
[224]
[225]
[226]
[227]
[228]
[229]
[230]
[231]
[232]
[233]
[234]
[235]
[236]
[237]
[238]
[239]
[240]
[241]
[242]
[243]
[244]
[245]
[246]
[247]
[248]